fUST/lending_fUST_20260118
["ID","MTS","AMOUNT","RATE_DAILY","PERIOD"]
[402541835,1768703440730,-500.0,0.00016438,2]
[402541837,1768703440740,-500.0,0.00016438,2]
[402541839,1768703440750,-500.0,0.00016438,2]
[402541841,1768703440760,-500.0,0.00016438,2]
[402541843,1768703440769,-500.0,0.00016438,2]
[402541845,1768703440779,-607.79,0.00016438,2]
[402541847,1768703440788,-500.0,0.00016438,2]
[402541849,1768703440797,-500.0,0.00016438,2]
[402541851,1768703440806,-500.0,0.00016438,2]
[402541852,1768703440815,-500.85687664,0.00016438,2]
[402541854,1768703440825,-500.0,0.00016438,2]
[402541856,1768703440834,-538.7725108,0.00016438,2]
[402541858,1768703440843,-500.0,0.00016438,2]
[402541860,1768703440853,-536.43523099,0.00016438,2]
[402541862,1768703440862,-500.0,0.00016438,2]
[402541864,1768703440871,-500.0,0.00016438,2]
[402541866,1768703440881,-500.0,0.00016438,2]
[402541874,1768703440953,-500.0,0.00016438,2]
[402541875,1768703440963,-282.09261711,0.00016438,2]
[402541877,1768703440972,-500.0,0.00016438,2]
[402541879,1768703440981,-500.0,0.00016438,2]
[402541881,1768703440990,-500.0,0.00016438,2]
[402541883,1768703440999,-500.0,0.00016438,2]
[402541885,1768703441008,-500.68897947,0.00016438,2]
[402541887,1768703441016,-500.0,0.00016438,2]
[402541888,1768703441026,-500.54546542,0.00016438,2]
[402541890,1768703441035,-500.0,0.00016438,2]
[402541892,1768703441044,-500.0,0.00016438,2]
[402541894,1768703441053,-500.0,0.00016438,2]
[402541896,1768703441062,-500.0,0.00016438,2]
[402541898,1768703441072,-884.16,0.00016438,2]
[402541900,1768703441081,-500.0,0.00016438,2]
[402541902,1768703441090,-500.0,0.00016438,2]
[402541903,1768703441100,-1023.55,0.00016438,2]
[402541905,1768703441109,-501.08207213,0.00016438,2]
[402541907,1768703441118,-622.96336897,0.00016438,2]
[402541909,1768703441127,-501.24577815,0.00016438,2]
[402541911,1768703441136,-500.0,0.00016438,2]
[402541913,1768703441144,-173.30711951,0.00016438,2]
[402541915,1768703441152,-500.0,0.00016438,2]
[402541916,1768703441161,-500.0,0.00016438,2]
[402541918,1768703441170,-500.0,0.00016438,2]
[402541920,1768703441179,-898.84,0.00016438,2]
[402541922,1768703441188,-500.0,0.00016438,2]
[402541924,1768703441197,-500.0,0.00016438,2]
[402541926,1768703441206,-500.0,0.00016438,2]
[402541928,1768703441215,-566.85,0.00016438,2]
[402541930,1768703441224,-500.0,0.00016438,2]
[402541932,1768703441232,-500.31553934,0.00016438,2]
[402541933,1768703441241,-812.39,0.00016438,2]
[402541935,1768703441250,-500.0,0.00016438,2]
[402541937,1768703441259,-500.0,0.00016438,2]
[402541939,1768703441268,-500.0,0.00016438,2]
[402541941,1768703441277,-500.0,0.00016438,2]
[402541943,1768703441286,-511.15,0.00016438,2]
[402541945,1768703441295,-500.0,0.00016438,2]
[402541947,1768703441304,-500.0,0.00016438,2]
[402541949,1768703441316,-558.73,0.00016438,2]
[402541950,1768703441325,-500.0,0.00016438,2]
[402541952,1768703441334,-500.0,0.00016438,2]
[402541954,1768703441343,-501.220575,0.00016438,2]
[402541956,1768703441352,-500.0,0.00016438,2]
[402541958,1768703441362,-500.0,0.00016438,2]
[402541960,1768703441372,-500.0,0.00016438,2]
[402541962,1768703441381,-500.0,0.00016438,2]
[402541964,1768703441391,-500.62769443,0.00016438,2]
[402541965,1768703441400,-530.01,0.00016438,2]
[402541967,1768703441409,-500.0,0.00016438,2]
[402541969,1768703441418,-500.0,0.00016438,2]
[402541971,1768703441428,-582.14,0.00016438,2]
[402541973,1768703441437,-500.0,0.00016438,2]
[402541975,1768703441446,-500.0,0.00016438,2]
[402541977,1768703441455,-501.360037,0.00016438,2]
[402541979,1768703441464,-500.0,0.00016438,2]
[402541980,1768703441473,-500.35557243,0.00016438,2]
[402541982,1768703441482,-971.69,0.00016438,2]
[402541983,1768703441491,-500.0,0.00016438,2]
[402541984,1768703441500,-500.0,0.00016438,2]
[402541985,1768703441509,-500.45914604,0.00016438,2]
[402541986,1768703441518,-500.93698926,0.00016438,2]
[402541987,1768703441527,-500.0,0.00016438,2]
[402541988,1768703441537,-500.0,0.00016438,2]
[402541989,1768703441546,-500.0,0.00016438,2]
[402541990,1768703441555,-500.36314683,0.00016438,2]
[402541991,1768703441565,-500.0,0.00016438,2]
[402541992,1768703441574,-500.0,0.00016438,2]
[402541993,1768703441583,-500.0,0.00016438,2]
[402541994,1768703441592,-500.0,0.00016438,2]
[402541995,1768703441602,-500.0,0.00016438,2]
[402541996,1768703441611,-500.0,0.00016438,2]
[402541997,1768703441620,-500.0,0.00016438,2]
[402541998,1768703441630,-500.39804758,0.00016438,2]
[402541999,1768703441639,-551.48831723,0.00016438,2]
[402542000,1768703441648,-500.0,0.00016438,2]
[402542001,1768703441658,-500.0,0.00016438,2]
[402542002,1768703441667,-500.0,0.00016438,2]
[402542003,1768703441677,-500.0,0.00016438,2]
[402542004,1768703441686,-500.0,0.00016438,2]
[402542005,1768703441695,-500.0,0.00016438,2]
[402542006,1768703441705,-500.0,0.00016438,2]
[402542007,1768703441715,-500.0,0.00016438,2]
[402542008,1768703441724,-500.0,0.00016438,2]
[402542009,1768703441733,-500.0,0.00016438,2]
[402542010,1768703441743,-629.05,0.00016438,2]
[402542011,1768703441752,-500.0,0.00016438,2]
[402542012,1768703441762,-500.0,0.00016438,2]
[402542013,1768703441770,-500.0,0.00016438,2]
[402542014,1768703441779,-500.0,0.00016438,2]
[402542015,1768703441788,-500.0,0.00016438,2]
[402542016,1768703441797,-500.0,0.00016438,2]
[402542017,1768703441806,-500.0,0.00016438,2]
[402542018,1768703441815,-541.97,0.00016438,2]
[402542019,1768703441824,-500.0,0.00016438,2]
[402542020,1768703441833,-500.0,0.00016438,2]
[402542021,1768703441843,-488.28807253,0.00016438,2]
[402542022,1768703441852,-800.02,0.00016438,2]
[402542023,1768703441861,-500.0,0.00016438,2]
[402542024,1768703441870,-500.0,0.00016438,2]
[402542025,1768703441879,-500.0,0.00016438,2]
[402542026,1768703441888,-500.0,0.00016438,2]
[402542027,1768703441897,-500.0,0.00016438,2]
[402542028,1768703441908,-500.0,0.00016438,2]
[402542029,1768703441916,-972.64,0.00016438,2]
[402542030,1768703441926,-500.86439627,0.00016438,2]
[402542031,1768703441935,-825.76,0.00016438,2]
[402542032,1768703441944,-500.0,0.00016438,2]
[402542033,1768703441954,-500.0,0.00016438,2]
[402542034,1768703441963,-526.88382228,0.00016438,2]
[402542035,1768703441972,-500.0,0.00016438,2]
[402542036,1768703441981,-500.0,0.00016438,2]
[402542037,1768703441990,-500.0,0.00016438,2]
[402542038,1768703441999,-250.02162396,0.00016438,2]
[402542039,1768703442008,-976.01,0.00016438,2]
[402542040,1768703442018,-500.0,0.00016438,2]
[402542041,1768703442028,-500.0,0.00016438,2]
[402542042,1768703442038,-500.0,0.00016438,2]
[402542043,1768703442048,-500.0,0.00016438,2]
[402542044,1768703442058,-500.0,0.00016438,2]
[402542045,1768703442067,-500.0,0.00016438,2]
[402542046,1768703442077,-500.0,0.00016438,2]
[402542047,1768703442088,-524.48,0.00016438,2]
[402542048,1768703442099,-501.01605601,0.00016438,2]
[402542049,1768703442108,-500.0,0.00016438,2]
[402542050,1768703442117,-500.0,0.00016438,2]
[402542051,1768703442127,-533.5526369,0.00016438,2]
[402542052,1768703442136,-510.94247285,0.00016438,2]
[402542053,1768703442145,-566.56689578,0.00016438,2]
[402542054,1768703442155,-83.74505476,0.00016438,2]
[402542055,1768703442181,-416.25494524,0.00016438,2]
[402542056,1768703442200,-500.0,0.00016438,2]
[402542057,1768703442220,-500.0,0.00016438,2]
[402542060,1768703442236,-500.0,0.00016438,2]
[402542061,1768703442245,-500.0,0.00016438,2]
[402542064,1768703442255,-649.18,0.00016438,2]
[402542065,1768703442264,-500.0,0.00016438,2]
[402542066,1768703442273,-879.7,0.00016438,2]
[402542068,1768703442282,-301.1966715,0.00016438,2]
[402542069,1768703442291,-500.0,0.00016438,2]
[402542070,1768703442300,-500.0,0.00016438,2]
[402542072,1768703442310,-500.0,0.00016438,2]
[402542074,1768703442326,-500.0,0.00016438,2]
[402542076,1768703442335,-500.0,0.00016438,2]
[402542078,1768703442344,-500.0,0.00016438,2]
[402542080,1768703442355,-500.0,0.00016438,2]
[402542082,1768703442364,-500.0,0.00016438,2]
[402542084,1768703442373,-500.0,0.00016438,2]
[402542086,1768703442382,-500.0,0.00016438,2]
[402542087,1768703442391,-534.21400732,0.00016438,2]
[402542089,1768703442400,-500.25109967,0.00016438,2]
[402542091,1768703442409,-501.33997513,0.00016438,2]
[402542093,1768703442418,-892.22,0.00016438,2]
[402542095,1768703442427,-500.0,0.00016438,2]
[402542097,1768703442437,-500.0,0.00016438,2]
[402542099,1768703442446,-500.0,0.00016438,2]
[402542101,1768703442455,-527.00747735,0.00016438,2]
[402542103,1768703442464,-1154.45,0.00016438,2]
[402542105,1768703442473,-500.0,0.00016438,2]
[402542107,1768703442482,-500.0,0.00016438,2]
[402542109,1768703442491,-500.0,0.00016438,2]
[402542111,1768703442500,-500.0,0.00016438,2]
[402542113,1768703442510,-516.25,0.00016438,2]
[402542115,1768703442519,-500.0,0.00016438,2]
[402542117,1768703442529,-500.0,0.00016438,2]
[402542119,1768703442539,-500.0,0.00016438,2]
[402542121,1768703442548,-500.0,0.00016438,2]
[402542123,1768703442558,-500.0,0.00016438,2]
[402542125,1768703442567,-500.0,0.00016438,2]
[402542127,1768703442577,-500.0,0.00016438,2]
[402542129,1768703442586,-500.31204654,0.00016438,2]
[402542131,1768703442596,-500.0,0.00016438,2]
[402542133,1768703442606,-500.0,0.00016438,2]
[402542135,1768703442615,-515.34,0.00016438,2]
[402542137,1768703442624,-500.0,0.00016438,2]
[402542139,1768703442633,-500.0,0.00016438,2]
[402542141,1768703442642,-500.54925496,0.00016438,2]
[402542143,1768703442652,-693.28,0.00016438,2]
[402542145,1768703442661,-500.74736293,0.00016438,2]
[402542147,1768703442670,-500.41845408,0.00016438,2]
[402542149,1768703442680,-500.0,0.00016438,2]
[402542151,1768703442689,-500.0,0.00016438,2]
[402542153,1768703442698,-664.08,0.00016438,2]
[402542155,1768703442708,-500.0,0.00016438,2]
[402542157,1768703442718,-247.02,0.00016438,2]
[402542159,1768703442727,-500.0,0.00016438,2]
[402542161,1768703442737,-575.13,0.00016438,2]
[402542163,1768703442748,-500.0,0.00016438,2]
[402542165,1768703442758,-500.0,0.00016438,2]
[402542167,1768703442767,-1168.61,0.00016438,2]
[402542169,1768703442777,-500.0,0.00016438,2]
[402542171,1768703442787,-500.47971943,0.00016438,2]
[402542173,1768703442796,-500.10727624,0.00016438,2]
[402542175,1768703442806,-500.0,0.00016438,2]
[402542177,1768703442815,-500.40313421,0.00016438,2]
[402542179,1768703442824,-500.0,0.00016438,2]
[402542181,1768703442833,-500.0,0.00016438,2]
[402542183,1768703442842,-500.0,0.00016438,2]
[402542185,1768703442852,-500.73559242,0.00016438,2]
[402542187,1768703442861,-500.0,0.00016438,2]
[402542189,1768703442872,-775.84,0.00016438,2]
[402542191,1768703442882,-500.0,0.00016438,2]
[402542193,1768703442891,-1036.76,0.00016438,2]
[402542195,1768703442901,-543.42,0.00016438,2]
[402542197,1768703442911,-500.0,0.00016438,2]
[402542199,1768703442920,-689.04,0.00016438,2]
[402542201,1768703442931,-500.0,0.00016438,2]
[402542203,1768703442940,-618.62345987,0.00016438,2]
[402542205,1768703442950,-500.0,0.00016438,2]
[402542207,1768703442960,-500.0,0.00016438,2]
[402542209,1768703442969,-500.0,0.00016438,2]
[402542211,1768703442978,-500.0,0.00016438,2]
[402542213,1768703442988,-500.0,0.00016438,2]
[402542215,1768703442997,-1079.93,0.00016438,2]
[402542217,1768703443007,-500.0,0.00016438,2]
[402542219,1768703443016,-500.0,0.00016438,2]
[402542221,1768703443026,-500.0,0.00016438,2]
[402542223,1768703443035,-500.0,0.00016438,2]
[402542225,1768703443045,-500.0,0.00016438,2]
[402542227,1768703443054,-705.37,0.00016438,2]
[402542229,1768703443064,-543.66757827,0.00016438,2]
[402542231,1768703443073,-500.0,0.00016438,2]
[402542233,1768703443082,-500.0,0.00016438,2]
[402542235,1768703443091,-1174.95,0.00016438,2]
[402542237,1768703443100,-500.0,0.00016438,2]
[402542239,1768703443110,-500.0,0.00016438,2]
[402542241,1768703443119,-500.0,0.00016438,2]
[402542243,1768703443128,-500.0,0.00016438,2]
[402542245,1768703443137,-500.0,0.00016438,2]
[402542247,1768703443147,-500.0,0.00016438,2]
[402542249,1768703443156,-500.0,0.00016438,2]
[402542251,1768703443166,-500.0,0.00016438,2]
[402542253,1768703443176,-500.0,0.00016438,2]
[402542255,1768703443185,-500.0,0.00016438,2]
[402542257,1768703443195,-500.0,0.00016438,2]
[402542259,1768703443204,-500.0,0.00016438,2]
[402542261,1768703443214,-578.27,0.00016438,2]
[402542263,1768703443223,-500.0,0.00016438,2]
[402542265,1768703443232,-500.3812378,0.00016438,2]
[402542267,1768703443242,-632.14249381,0.00016438,2]
[402542269,1768703443251,-500.0,0.00016438,2]
[402542271,1768703443262,-500.0,0.00016438,2]
[402542273,1768703443272,-500.31976552,0.00016438,2]
[402542275,1768703443281,-500.76416694,0.00016438,2]
[402542277,1768703443291,-501.69632464,0.00016438,2]
[402542279,1768703443300,-773.01,0.00016438,2]
[402542281,1768703443311,-500.0,0.00016438,2]
[402542283,1768703443321,-500.0,0.00016438,2]
[402542285,1768703443330,-500.0,0.00016438,2]
[402542287,1768703443340,-500.0,0.00016438,2]
[402542289,1768703443351,-500.0,0.00016438,2]
[402542291,1768703443360,-500.0,0.00016438,2]
[402542293,1768703443369,-546.88506928,0.00016438,2]
[402542295,1768703443379,-500.0,0.00016438,2]
[402542297,1768703443390,-500.0,0.00016438,2]
[402542299,1768703443399,-611.61,0.00016438,2]
[402542301,1768703443408,-500.0,0.00016438,2]
[402542303,1768703443417,-930.29,0.00016438,2]
[402542305,1768703443427,-500.0,0.00016438,2]
[402542307,1768703443436,-500.0,0.00016438,2]
[402542309,1768703443445,-500.0,0.00016438,2]
[402542311,1768703443455,-500.0,0.00016438,2]
[402542313,1768703443465,-500.0,0.00016438,2]
[402542315,1768703443474,-500.0,0.00016438,2]
[402542317,1768703443484,-500.0,0.00016438,2]
[402542319,1768703443493,-500.0,0.00016438,2]
[402542321,1768703443503,-500.71563459,0.00016438,2]
[402542323,1768703443513,-1238.05,0.00016438,2]
[402542325,1768703443522,-500.0,0.00016438,2]
[402542327,1768703443531,-500.0,0.00016438,2]
[402542329,1768703443541,-1756.05,0.00016438,2]
[402542331,1768703443550,-203.04707942,0.00016438,2]
[402542333,1768703443560,-500.0,0.00016438,2]
[402542335,1768703443570,-949.62,0.00016438,2]
[402542337,1768703443579,-500.0,0.00016438,2]
[402542339,1768703443588,-1039.14,0.00016438,2]
[402542341,1768703443597,-500.0,0.00016438,2]
[402542343,1768703443607,-500.0,0.00016438,2]
[402542344,1768703443617,-685.36,0.00016438,2]
[402542346,1768703443627,-880.23,0.00016438,2]
[402542348,1768703443636,-500.0,0.00016438,2]
[402542350,1768703443646,-500.0,0.00016438,2]
[402542352,1768703443655,-500.0,0.00016438,2]
[402542353,1768703443664,-500.0,0.00016438,2]
[402542355,1768703443673,-500.0,0.00016438,2]
[402542357,1768703443683,-500.0,0.00016438,2]
[402542359,1768703443693,-500.0,0.00016438,2]
[402542361,1768703443702,-500.0,0.00016438,2]
[402542363,1768703443711,-500.0,0.00016438,2]
[402542365,1768703443721,-500.0,0.00016438,2]
[402542367,1768703443732,-500.0,0.00016438,2]
[402542369,1768703443741,-500.0,0.00016438,2]
[402542371,1768703443750,-500.0,0.00016438,2]
[402542373,1768703443760,-500.0,0.00016438,2]
[402542375,1768703443770,-500.0,0.00016438,2]
[402542377,1768703443780,-623.95,0.00016438,2]
[402542379,1768703443790,-500.0,0.00016438,2]
[402542381,1768703443800,-500.53588696,0.00016438,2]
[402542383,1768703443810,-500.0,0.00016438,2]
[402542385,1768703443820,-718.36,0.00016438,2]
[402542386,1768703443829,-500.0,0.00016438,2]
[402542388,1768703443839,-638.66,0.00016438,2]
[402542390,1768703443849,-500.0,0.00016438,2]
[402542392,1768703443859,-985.28,0.00016438,2]
[402542394,1768703443869,-501.51007832,0.00016438,2]
[402542396,1768703443879,-504.97033123,0.00016438,2]
[402542398,1768703443889,-211.62283602,0.00016438,2]
[402542400,1768703443898,-500.0,0.00016438,2]
[402542402,1768703443907,-500.0,0.00016438,2]
[402542404,1768703443917,-620.0,0.00016438,2]
[402542406,1768703443926,-500.0,0.00016438,2]
[402542408,1768703443936,-500.0,0.00016438,2]
[402542410,1768703443945,-500.0,0.00016438,2]
[402542412,1768703443955,-501.80202456,0.00016438,2]
[402542414,1768703443964,-500.0,0.00016438,2]
[402542416,1768703443975,-500.0,0.00016438,2]
[402542418,1768703443984,-858.5,0.00016438,2]
[402542420,1768703443993,-500.0,0.00016438,2]
[402542421,1768703444002,-500.0,0.00016438,2]
[402542423,1768703444011,-500.0,0.00016438,2]
[402542425,1768703444021,-500.0,0.00016438,2]
[402542427,1768703444030,-919.25,0.00016438,2]
[402542429,1768703444040,-500.0,0.00016438,2]
[402542431,1768703444050,-500.0,0.00016438,2]
[402542433,1768703444059,-503.7648346,0.00016438,2]
[402542435,1768703444068,-500.0,0.00016438,2]
[402542437,1768703444079,-556.3,0.00016438,2]
[402542439,1768703444098,-500.0,0.00016438,2]
[402542440,1768703444108,-500.0,0.00016438,2]
[402542442,1768703444117,-501.23216071,0.00016438,2]
[402542444,1768703444127,-500.0,0.00016438,2]
[402542446,1768703444137,-500.0,0.00016438,2]
[402542448,1768703444148,-500.0,0.00016438,2]
[402542450,1768703444158,-1000.0,0.00016438,2]
[402542452,1768703444168,-500.0,0.00016438,2]
[402542454,1768703444177,-500.0,0.00016438,2]
[402542456,1768703444187,-500.0,0.00016438,2]
[402542458,1768703444196,-579.99,0.00016438,2]
[402542459,1768703444205,-920.37,0.00016438,2]
[402542461,1768703444214,-524.07613237,0.00016438,2]
[402542463,1768703444224,-651.89,0.00016438,2]
[402542465,1768703444234,-500.0,0.00016438,2]
[402542467,1768703444243,-500.0,0.00016438,2]
[402542469,1768703444254,-500.0,0.00016438,2]
[402542471,1768703444264,-265.58472457,0.00016438,2]
[402542473,1768703444273,-500.0,0.00016438,2]
[402542475,1768703444282,-500.0,0.00016438,2]
[402542477,1768703444292,-500.0,0.00016438,2]
[402542479,1768703444301,-493.96235988,0.00016438,2]
[402542481,1768703444311,-500.0,0.00016438,2]
[402542483,1768703444324,-500.0,0.00016438,2]
[402542485,1768703444334,-671.72,0.00016438,2]
[402542487,1768703444345,-500.0,0.00016438,2]
[402542489,1768703444356,-500.0,0.00016438,2]
[402542491,1768703444365,-500.0,0.00016438,2]
[402542493,1768703444374,-1311.27,0.00016438,2]
[402542495,1768703444384,-500.0,0.00016438,2]
[402542496,1768703444395,-500.0,0.00016438,2]
[402542498,1768703444404,-500.0,0.00016438,2]
[402542500,1768703444413,-500.0,0.00016438,2]
[402542502,1768703444423,-500.0,0.00016438,2]
[402542504,1768703444432,-500.0,0.00016438,2]
[402542506,1768703444441,-502.29603439,0.00016438,2]
[402542508,1768703444451,-1033.27,0.00016438,2]
[402542510,1768703444461,-500.0,0.00016438,2]
[402542512,1768703444470,-834.87,0.00016438,2]
[402542514,1768703444479,-500.0,0.00016438,2]
[402542516,1768703444489,-500.0,0.00016438,2]
[402542518,1768703444499,-500.0,0.00016438,2]
[402542520,1768703444508,-500.0,0.00016438,2]
[402542522,1768703444517,-538.49,0.00016438,2]
[402542524,1768703444527,-500.0,0.00016438,2]
[402542526,1768703444537,-500.0,0.00016438,2]
[402542528,1768703444546,-500.0,0.00016438,2]
[402542530,1768703444555,-1032.89,0.00016438,2]
[402542532,1768703444565,-500.0,0.00016438,2]
[402542534,1768703444574,-500.0,0.00016438,2]
[402542535,1768703444585,-1380.26,0.00016438,2]
[402542537,1768703444595,-1802.52,0.00016438,2]
[402542539,1768703444605,-620.11,0.00016438,2]
[402542541,1768703444615,-500.0,0.00016438,2]
[402542543,1768703444625,-500.0,0.00016438,2]
[402542545,1768703444635,-500.0,0.00016438,2]
[402542546,1768703444645,-1007.15,0.00016438,2]
[402542547,1768703444655,-500.0,0.00016438,2]
[402542548,1768703444664,-500.59761141,0.00016438,2]
[402542549,1768703444674,-500.0,0.00016438,2]
[402542550,1768703444684,-500.94709796,0.00016438,2]
[402542551,1768703444693,-503.39839396,0.00016438,2]
[402542552,1768703444703,-500.0,0.00016438,2]
[402542553,1768703444713,-500.0,0.00016438,2]
[402542554,1768703444722,-501.0078924,0.00016438,2]
[402542555,1768703444732,-500.0,0.00016438,2]
[402542556,1768703444742,-500.0,0.00016438,2]
[402542557,1768703444751,-506.28912045,0.00016438,2]
[402542558,1768703444761,-500.75000517,0.00016438,2]
[402542559,1768703444771,-527.54029325,0.00016438,2]
[402542560,1768703444781,-500.0,0.00016438,2]
[402542562,1768703444790,-500.0,0.00016438,2]
[402542564,1768703444799,-500.0,0.00016438,2]
[402542566,1768703444809,-500.88795272,0.00016438,2]
[402542568,1768703444819,-506.69750746,0.00016438,2]
[402542570,1768703444828,-500.0,0.00016438,2]
[402542572,1768703444838,-500.0,0.00016438,2]
[402542573,1768703444847,-500.0,0.00016438,2]
[402542576,1768703444857,-500.0,0.00016438,2]
[402542578,1768703444867,-1435.68,0.00016438,2]
[402542580,1768703444876,-500.0,0.00016438,2]
[402542582,1768703444886,-500.0,0.00016438,2]
[402542584,1768703444896,-542.22,0.00016438,2]
[402542586,1768703444905,-590.82,0.00016438,2]
[402542588,1768703444915,-500.80985225,0.00016438,2]
[402542590,1768703444924,-501.58757431,0.00016438,2]
[402542592,1768703444934,-500.0,0.00016438,2]
[402542594,1768703444943,-226.44584841,0.00016438,2]
[402542596,1768703444952,-500.0,0.00016438,2]
[402542598,1768703444962,-500.0,0.00016438,2]
[402542600,1768703444972,-500.76130382,0.00016438,2]
[402542602,1768703444981,-760.37,0.00016438,2]
[402542604,1768703444991,-500.0,0.00016438,2]
[402542606,1768703445001,-500.87488461,0.00016438,2]
[402542608,1768703445011,-500.0,0.00016438,2]
[402542610,1768703445020,-504.65472112,0.00016438,2]
[402542612,1768703445029,-613.04146891,0.00016438,2]
[402542614,1768703445039,-509.64,0.00016438,2]
[402542616,1768703445049,-500.25069292,0.00016438,2]
[402542618,1768703445058,-829.88,0.00016438,2]
[402542620,1768703445067,-500.0,0.00016438,2]
[402542621,1768703445076,-500.0,0.00016438,2]
[402542623,1768703445087,-500.0,0.00016438,2]
[402542625,1768703445096,-500.36840998,0.00016438,2]
[402542627,1768703445106,-1026.42,0.00016438,2]
[402542629,1768703445115,-501.06195108,0.00016438,2]
[402542631,1768703445124,-576.93397221,0.00016438,2]
[402542633,1768703445134,-500.0,0.00016438,2]
[402542635,1768703445143,-500.0,0.00016438,2]
[402542637,1768703445153,-500.0,0.00016438,2]
[402542639,1768703445163,-501.00587852,0.00016438,2]
[402542641,1768703445172,-500.0,0.00016438,2]
[402542644,1768703445182,-500.0,0.00016438,2]
[402542646,1768703445191,-644.13782086,0.00016438,2]
[402542648,1768703445201,-607.2,0.00016438,2]
[402542651,1768703445210,-482.75664561,0.00016438,2]
[402542653,1768703445220,-500.0,0.00016438,2]
[402542655,1768703445230,-500.0,0.00016438,2]
[402542657,1768703445239,-325.78964737,0.00016438,2]
[402542659,1768703445251,-500.0,0.00016438,2]
[402542661,1768703445261,-500.0,0.00016438,2]
[402542663,1768703445270,-500.22198326,0.00016438,2]
[402542664,1768703445280,-500.0,0.00016438,2]
[402542666,1768703445289,-764.4,0.00016438,2]
[402542668,1768703445299,-500.63490596,0.00016438,2]
[402542670,1768703445314,-562.64,0.00016438,2]
[402542672,1768703445329,-500.0,0.00016438,2]
[402542674,1768703445340,-500.22969732,0.00016438,2]
[402542676,1768703445349,-500.0,0.00016438,2]
[402542678,1768703445359,-502.04714482,0.00016438,2]
[402542680,1768703445369,-599.45117943,0.00016438,2]
[402542682,1768703445378,-500.0,0.00016438,2]
[402542684,1768703445388,-500.0,0.00016438,2]
[402542686,1768703445397,-500.75193525,0.00016438,2]
[402542688,1768703445407,-500.0,0.00016438,2]
[402542690,1768703445416,-500.0,0.00016438,2]
[402542692,1768703445425,-873.22,0.00016438,2]
[402542694,1768703445435,-500.0,0.00016438,2]
[402542696,1768703445444,-500.0,0.00016438,2]
[402542698,1768703445454,-502.60793138,0.00016438,2]
[402542700,1768703445463,-544.98529864,0.00016438,2]
[402542703,1768703445473,-500.21296987,0.00016438,2]
[402542705,1768703445482,-500.0,0.00016438,2]
[402542706,1768703445491,-500.59711754,0.00016438,2]
[402542708,1768703445501,-500.66442645,0.00016438,2]
[402542710,1768703445510,-500.0,0.00016438,2]
[402542712,1768703445519,-500.0,0.00016438,2]
[402542714,1768703445528,-613.39362306,0.00016438,2]
[402542716,1768703445538,-500.0,0.00016438,2]
[402542718,1768703445548,-500.0,0.00016438,2]
[402542720,1768703445558,-500.0,0.00016438,2]
[402542722,1768703445567,-500.0,0.00016438,2]
[402542724,1768703445576,-1126.48,0.00016438,2]
[402542726,1768703445586,-500.0,0.00016438,2]
[402542728,1768703445595,-500.0,0.00016438,2]